fUSD/lending_fUSD_20251206
["ID","MTS","AMOUNT","RATE_DAILY","PERIOD"]
[396524723,1765035753162,-163.86219514,0.00013107,2]
[396524724,1765035755250,-278.50747738,0.00013107,2]
[396524725,1765035757268,-182.73267266,0.00013107,2]
[396524726,1765035759205,-189.06448687,0.00013107,2]
[396524727,1765035760985,-378.15031131,0.00013107,2]
[396524728,1765035763991,-232.31,0.00013107,2]
[396524729,1765035767249,-222.30237251,0.00013107,2]
[396524730,1765035768857,-530.80113346,0.00013107,2]
[396524731,1765035770494,-166.66,0.00013107,2]
[396524732,1765035773653,-184.19305398,0.00013107,2]
[396524733,1765035776016,-674.38016308,0.00013107,2]
[396524734,1765035781832,-285.20550173,0.00013107,2]
[396524735,1765035783497,-214.13623566,0.00013107,2]
[396524736,1765035785838,-163.39829817,0.00013107,2]
[396524737,1765035787787,-170.58350737,0.00013107,2]
[396524739,1765035789992,-220.86466532,0.00013107,2]
[396524740,1765035790783,78111.71,0.00012554,2]
[396524741,1765035793900,-254.03181869,0.00013107,2]
[396524742,1765035795493,-161.32,0.00013107,2]
[396524743,1765035797515,-300.0,0.00013107,2]
[396524745,1765035799721,-224.43432521,0.00012837,2]
[396524746,1765035799792,-220.38310545,0.00013107,2]
[396524749,1765035801436,-429.40019948,0.00013107,2]
[396524750,1765035803705,-246.88643133,0.00013107,2]
[396524751,1765035807677,-322.78960135,0.00013107,2]
[396524752,1765035809920,-321.53,0.00013107,2]
[396524753,1765035813141,-172.01323948,0.00013107,2]
[396524754,1765035815832,-168.35757804,0.00013107,2]
[396524755,1765035817458,-251.54634236,0.00013107,2]
[396524756,1765035819664,-197.00144261,0.00013107,2]
[396524757,1765035823693,-274.7876556,0.00013107,2]
[396524758,1765035825377,-397.23151695,0.00013107,2]
[396524759,1765035827022,-329.78465635,0.00013107,2]
[396524760,1765035828885,-201.35679758,0.00012767,2]
[396524761,1765035831198,-12.21320242,0.00012767,2]
[396524762,1765035831258,-159.37917689,0.00013107,2]
[396524763,1765035833462,-231.8471339,0.00013107,2]
[396524764,1765035835732,-182.54369777,0.00013107,2]
[396524765,1765035839102,-306.83557542,0.00013,2]
[396524766,1765035841630,-195.08025111,0.00013,2]
[396524767,1765035844329,-438.81961314,0.00013,2]
[396524768,1765035846067,-158.64459225,0.00013,2]
[396524769,1765035847689,-207.25287225,0.00013,2]
[396524770,1765035850437,-317.37799595,0.00013,2]
[396524771,1765035853833,-265.47540185,0.00013,2]
[396524782,1765035859048,-221.24149237,0.00013,2]
[396524783,1765035862586,-329.60605259,0.00013,2]
[396524784,1765035865196,-212.24345613,0.00013,2]
[396524785,1765035866868,-250.3799962,0.00013,2]
[396524790,1765035870921,-300.0,0.00013,2]
[396524795,1765035873816,-758.86819842,0.00013,2]
[396524799,1765035876969,-170.06483356,0.00013,2]
[396524813,1765035879125,-177.63303833,0.00013,2]
[396524832,1765035881378,-368.72567274,0.00013,2]
[396524837,1765035887072,-300.0,0.00013,2]
[396524838,1765035887303,-10000.01,0.00013,2]
[396524839,1765035887814,-2422.40654979,0.00013,2]
[396524840,1765035887879,-5155.19690042,0.00013,2]
[396524842,1765035889614,-176.40424552,0.00013106,2]
[396524847,1765035894375,-123.59575448,0.00013106,2]
[396524849,1765035894441,-113.33500361,0.00013107,2]
[396524853,1765035895970,-324.6557755,0.00013107,2]
[396524854,1765035896434,-10000.01,0.00013107,2]
[396524856,1765035896658,-2935.30555916,0.00013107,2]
[396524858,1765035896733,-211.44966488,0.0001325,2]
[396524860,1765035896808,-396.85742534,0.0001325,2]
[396524861,1765035896881,-152.67452687,0.0001325,2]
[396524864,1765035896995,-500.0,0.0001325,2]
[396524866,1765035897113,-500.0,0.0001325,2]
[396524868,1765035897224,-107.4356475,0.0001325,2]
[396524875,1765035897634,-392.5643525,0.0001325,2]
[396524894,1765035908362,1198.49,0.00012523,2]
[396524895,1765035909355,-181.18549778,0.0001315,2]
[396524896,1765035909425,-7.48380327,0.00013172,2]
[396524897,1765035913283,-162.175406,0.00013,2]
[396524898,1765035916883,-404.26656608,0.00012942,2]
[396524902,1765035922067,-204.36985407,0.00012942,2]
[396524906,1765035924203,-457.44450072,0.00012942,2]
[396524908,1765035925706,-282.32001828,0.00012942,2]
[396524910,1765035929000,-175.70786457,0.00012942,2]
[396524913,1765035930657,-277.90407993,0.00012942,2]
[396524914,1765035933725,-236.42907874,0.00012942,2]
[396524916,1765035936078,-178.19703209,0.00012942,2]
[396524918,1765035938315,-748.67669582,0.00012942,2]
[396524919,1765035940567,-233.32285711,0.00012942,2]
[396524921,1765035943667,-297.31035049,0.00012942,2]
[396524923,1765035946973,-229.60371198,0.00012942,2]
[396524925,1765035948562,-360.64342127,0.00012942,2]
[396524927,1765035951537,-250.0,0.00012942,2]
[396524929,1765035954766,-181.61335848,0.00012942,2]
[396524930,1765035956233,-70.57938963,0.00012942,2]
[396524931,1765035956362,-9858.85122074,0.00012942,2]
[396524932,1765035956522,-14.22883952,0.00013,2]
[396524933,1765035956600,-627.67416469,0.00013158,2]
[396524934,1765035956671,-379.69304679,0.00013172,2]
[396524935,1765035956785,-500.0,0.0001325,2]
[396524936,1765035956898,-359.70928465,0.0001325,2]
[396524937,1765035956976,-236.93075809,0.0001325,2]
[396524938,1765035957048,-300.0,0.0001325,2]
[396524939,1765035957125,-1200.0,0.0001325,2]
[396524940,1765035957202,-150.0,0.0001325,2]
[396524941,1765035958391,-2463.53781252,0.00013251,2]
[396524942,1765035958727,-500.0,0.0001325,2]
[396524943,1765035958736,-301.73546406,0.0001325,2]
[396524944,1765035958746,-9198.27453594,0.00013251,2]
[396524945,1765035959021,-500.0,0.0001325,2]
[396524947,1765035959282,-500.0,0.0001325,2]
[396524948,1765035959291,-500.0,0.0001325,2]
[396524949,1765035959302,-500.0,0.0001325,2]
[396524950,1765035959313,-500.0,0.0001325,2]
[396524951,1765035959323,-7500.01,0.00013251,2]
[396524952,1765035959481,-500.0,0.0001325,2]
[396524953,1765035959687,-500.0,0.0001325,2]
[396524954,1765035959697,-8500.01,0.00013251,2]
[396524957,1765035962205,-2702.3712327,0.0001323,2]
[396524958,1765035962281,-300.0,0.0001325,2]
[396524959,1765035962526,-3995.2675346,0.00013251,2]
[396524960,1765035968088,881.67812173,0.00015237,7]
[396524966,1765035980508,-500.0,0.0001325,2]
[396524967,1765035980635,-542.39909657,0.0001325,2]
[396524968,1765035980753,-500.0,0.0001325,2]
[396524969,1765035980869,-500.0,0.0001325,2]
[396524970,1765035980986,-500.0,0.0001325,2]
[396524971,1765035981094,-500.0,0.0001325,2]
[396524972,1765035981205,-500.0,0.0001325,2]
[396524973,1765035981327,-500.0,0.0001325,2]
[396524974,1765035981441,-500.0,0.0001325,2]
[396524975,1765035982811,-915.21180686,0.00013251,2]
[396524976,1765035982977,-10000.01,0.00013251,2]
[396524977,1765035983198,-305.6556076,0.00013248,2]
[396524978,1765035983261,-721.53934449,0.00013248,2]
[396524979,1765035983271,-9278.47065551,0.00013251,2]
[396524980,1765035989505,-10000.01,0.00013251,2]
[396524985,1765036001134,-10000.01,0.00013251,2]
[396524995,1765036017172,-270.81762869,0.00013158,2]
[396524996,1765036018692,-200.45362261,0.00013158,2]
[396524998,1765036020339,-303.37034712,0.00013158,2]
[396524999,1765036022383,-619.03414726,0.00013158,2]
[396525002,1765036024119,-326.96529855,0.00013158,2]
[396525006,1765036026246,-167.83434139,0.00013158,2]
[396525007,1765036028964,-151.901771,0.00013158,2]
[396525008,1765036031046,-192.20605961,0.00013158,2]
[396525024,1765036033701,-284.84393021,0.00013158,2]
[396525032,1765036035149,-263.71371102,0.00013158,2]
[396525067,1765036046665,-182.89270331,0.00013158,2]
[396525082,1765036048880,-304.2358913,0.00013158,2]
[396525096,1765036050869,-195.7641087,0.00013158,2]
[396525100,1765036053646,-340.47051123,0.00013158,2]
[396525101,1765036055811,-166.66,0.00013158,2]
[396525102,1765036057345,-490.31482809,0.00013158,2]
[396525104,1765036060495,-238.41567428,0.00013158,2]
[396525105,1765036064308,-255.08896124,0.00013158,2]
[396525106,1765036066015,-190.84913213,0.00013158,2]
[396525108,1765036068762,-474.83166038,0.00013158,2]
[396525109,1765036071447,-300.0,0.00013158,2]
[396525110,1765036075541,-242.22332319,0.00013158,2]
[396525115,1765036080273,-279.17409837,0.00013158,2]
[396525116,1765036081508,-201.87060074,0.00013158,2]
[396525118,1765036084384,-216.89323966,0.00013158,2]
[396525119,1765036086181,-306.41849889,0.00013158,2]
[396525127,1765036095378,-431.46689418,0.00013158,2]
[396525128,1765036097880,-234.94613277,0.00013158,2]
[396525130,1765036100196,-300.0,0.00013158,2]
[396525135,1765036102281,-307.25812707,0.00013158,2]
[396525141,1765036104587,-475.14756164,0.00013158,2]
[396525143,1765036107825,-215.18826483,0.00013158,2]
[396525144,1765036110664,-220.67852546,0.00013158,2]
[396525145,1765036112186,-441.00027961,0.00013158,2]
[396525147,1765036114452,-285.89067237,0.00013158,2]
[396525166,1765036116645,-191.70548187,0.00013158,2]
[396525177,1765036118077,-281.7421001,0.00013158,2]
[396525183,1765036119962,-200.05410493,0.00013158,2]
[396525184,1765036121213,-199.94589507,0.00013158,2]
[396525185,1765036122505,1045.92,0.00012709,2]
[396525186,1765036125070,-399.89700002,0.00013158,2]
[396525187,1765036127221,-173.83212966,0.00013158,2]
[396525188,1765036128885,-152.54113406,0.00013158,2]
[396525189,1765036131687,-239.81223451,0.00013158,2]
[396525191,1765036132725,-2457.19334036,0.00013158,2]
[396525192,1765036132792,-469.0,0.00013242,2]
[396525193,1765036132858,-300.0,0.00013242,2]
[396525194,1765036132922,-262.0,0.00013242,2]
[396525195,1765036132990,-150.0,0.00013242,2]
[396525196,1765036133055,-500.0,0.00013243,2]
[396525197,1765036133124,-500.0,0.00013243,2]
[396525198,1765036133193,-223.62331928,0.00013243,2]
[396525199,1765036133474,-276.37668072,0.00013243,2]
[396525200,1765036133539,-500.0,0.00013243,2]
[396525201,1765036133608,-500.0,0.00013243,2]
[396525202,1765036133678,-500.0,0.00013243,2]
[396525203,1765036133744,-301.39878914,0.00013243,2]
[396525204,1765036133814,-151.0,0.00013243,2]
[396525205,1765036133881,-574.12855637,0.00013243,2]
[396525206,1765036133951,-500.0,0.00013243,2]
[396525207,1765036134020,-500.0,0.00013243,2]
[396525208,1765036134088,-500.0,0.00013243,2]
[396525209,1765036134160,-500.0,0.00013243,2]
[396525210,1765036134233,-151.0,0.00013243,2]
[396525212,1765036135801,-172.97789158,0.00013243,2]
[396525213,1765036135866,-151.0,0.00013243,2]
[396525214,1765036135931,-92.20194754,0.00013243,2]
[396525215,1765036135994,-83.82016088,0.00013243,2]
[396525216,1765036136053,-85.877959,0.00013243,2]
[396525218,1765036138377,-414.122041,0.00013243,2]
[396525219,1765036138460,-500.0,0.00013243,2]
[396525220,1765036138534,-200.0,0.00013243,2]
[396525221,1765036138613,-500.0,0.00013243,2]
[396525222,1765036138687,-500.0,0.00013243,2]
[396525223,1765036138759,-500.0,0.00013243,2]
[396525224,1765036138826,-1000.0,0.00013243,2]
[396525225,1765036138894,-500.0,0.00013243,2]
[396525226,1765036138969,-771.765918,0.00013243,2]
[396525227,1765036139566,-228.234082,0.00013243,2]
[396525228,1765036139637,-1000.0,0.00013243,2]
[396525229,1765036139704,-500.0,0.00013243,2]
[396525230,1765036139775,-1000.0,0.00013243,2]
[396525231,1765036139845,-500.0,0.00013243,2]
[396525232,1765036139916,-1000.0,0.00013243,2]
[396525233,1765036139986,-500.0,0.00013243,2]
[396525234,1765036141847,-674.36840042,0.00013243,2]
[396525235,1765036142083,-228.234082,0.00013243,2]
[396525236,1765036142217,-97.39751758,0.00013243,2]
[396525237,1765036142226,-446.14431842,0.00013243,2]
[396525243,1765036144156,-53.85568158,0.00013243,2]
[396525244,1765036144232,-1000.0,0.00013243,2]
[396525245,1765036144317,-500.0,0.00013243,2]
[396525247,1765036144392,-1000.0,0.00013243,2]
[396525248,1765036144468,-500.0,0.00013243,2]
[396525249,1765036144553,-1000.0,0.00013243,2]
[396525251,1765036144629,-500.0,0.00013243,2]
[396525253,1765036144712,-250.0,0.00013243,2]
[396525257,1765036145349,-1000.0,0.00013243,2]
[396525258,1765036145420,-171.28879437,0.00013243,2]
[396525259,1765036145491,-500.0,0.00013243,2]
[396525260,1765036145566,-1000.0,0.00013243,2]
[396525261,1765036145635,-500.0,0.00013243,2]
[396525262,1765036145703,-500.0,0.00013243,2]
[396525263,1765036145772,-500.0,0.00013243,2]
[396525264,1765036145839,-200.0,0.00013243,2]
[396525265,1765036145907,-300.0,0.00013243,2]
[396525266,1765036145975,-157.43241126,0.00013243,2]
[396525267,1765036147311,-234.86622558,0.00013243,2]
[396525268,1765036147400,-107.70136316,0.00013243,2]
[396525269,1765036147411,-392.29863684,0.00013243,2]
[396525270,1765036147506,-107.70136316,0.00013243,2]
[396525271,1765036147570,-84.9360277,0.00013243,2]
[396525274,1765036149343,-234.28530657,0.00013243,2]
[396525322,1765036192238,150.0,0.00012686,2]
[396525385,1765036225347,11963.8,0.00012438,2]
[396525390,1765036226781,-309.2407181,0.00013,2]
[396525399,1765036230680,-199.99670706,0.00013,2]
[396525424,1765036232070,-11201.05970579,0.00013,2]
[396525425,1765036232080,-233.79357694,0.00013076,2]
[396525426,1765036232089,-577.91535804,0.00013158,2]
[396525427,1765036232099,-258.0,0.00013176,2]
[396525428,1765036232109,-193.55237854,0.00013176,2]
[396525429,1765036232119,-300.0,0.00013242,2]
[396525430,1765036232128,-300.0,0.00013242,2]
[396525431,1765036232137,-1200.0,0.00013242,2]
[396525432,1765036232147,-180.77866573,0.00013243,2]
[396525433,1765036232156,-500.0,0.00013243,2]
[396525434,1765036232166,-500.0,0.00013243,2]
[396525435,1765036232182,-500.0,0.00013243,2]
[396525436,1765036232194,-302.16142722,0.00013243,2]
[396525437,1765036232204,-500.0,0.00013243,2]
[396525438,1765036232215,-500.0,0.00013243,2]
[396525440,1765036232225,-500.0,0.00013243,2]
[396525441,1765036232234,-151.0,0.00013243,2]
[396525442,1765036232243,-151.0,0.00013243,2]
[396525443,1765036232253,-151.0,0.00013243,2]
[396525444,1765036232262,-151.0,0.00013243,2]
[396525445,1765036232272,-151.0,0.00013243,2]
[396525446,1765036232282,-151.0,0.00013243,2]
[396525447,1765036232292,-151.0,0.00013243,2]
[396525448,1765036232302,-151.0,0.00013243,2]
[396525449,1765036232313,-151.0,0.00013243,2]
[396525450,1765036232322,-151.0,0.00013243,2]
[396525451,1765036232332,-151.0,0.00013243,2]
[396525452,1765036232342,-200.02954445,0.00013243,2]
[396525453,1765036232351,-578.20924308,0.0001325,2]
[396525454,1765036232361,-311.1,0.0001325,2]
[396525455,1765036232370,-293.92091827,0.0001325,2]
[396525457,1765036232380,-507.37994581,0.0001325,2]
[396525458,1765036232389,-507.37994581,0.0001325,2]
[396525459,1765036232398,-507.37994581,0.0001325,2]
[396525460,1765036232407,-507.37994581,0.0001325,2]
[396525461,1765036232416,-507.37994581,0.0001325,2]
[396525462,1765036232426,-507.37994581,0.0001325,2]
[396525463,1765036232436,-507.37994581,0.0001325,2]
[396525464,1765036232445,-507.37994581,0.0001325,2]
[396525465,1765036232454,-507.37994581,0.0001325,2]
[396525466,1765036232468,-507.37994581,0.0001325,2]
[396525467,1765036232478,-507.37994581,0.0001325,2]
[396525468,1765036232487,-507.37994581,0.0001325,2]
[396525469,1765036232497,-507.37994581,0.0001325,2]
[396525470,1765036232506,-507.37994581,0.0001325,2]
[396525471,1765036232516,-507.37994581,0.0001325,2]
[396525472,1765036232526,-507.37994581,0.0001325,2]
[396525473,1765036232535,-507.37994581,0.0001325,2]
[396525474,1765036232545,-507.37994581,0.0001325,2]
[396525475,1765036232554,-507.37994581,0.0001325,2]
[396525476,1765036232563,-507.37994581,0.0001325,2]
[396525477,1765036232572,-507.37994581,0.0001325,2]
[396525478,1765036232582,-507.37994581,0.0001325,2]
[396525479,1765036232591,-507.37994581,0.0001325,2]
[396525480,1765036232600,-507.37994581,0.0001325,2]
[396525481,1765036232610,-507.37994581,0.0001325,2]
[396525482,1765036232619,-507.37994581,0.0001325,2]
[396525484,1765036232629,-507.37994581,0.0001325,2]
[396525485,1765036232638,-507.37994581,0.0001325,2]
[396525486,1765036232647,-507.37994581,0.0001325,2]
[396525487,1765036232657,-502.30614635,0.0001325,2]
[396525488,1765036232666,-502.30614635,0.0001325,2]
[396525489,1765036232675,-502.30614635,0.0001325,2]
[396525490,1765036232685,-502.30614635,0.0001325,2]
[396525491,1765036232694,-502.30614635,0.0001325,2]
[396525492,1765036232704,-502.30614635,0.0001325,2]
[396525493,1765036232713,-502.30614635,0.0001325,2]
[396525494,1765036232722,-502.30614635,0.0001325,2]
[396525495,1765036232732,-502.30614635,0.0001325,2]
[396525496,1765036232741,-502.30614635,0.0001325,2]
[396525505,1765036233020,-502.30614635,0.0001325,2]
[396525508,1765036233038,-502.30614635,0.0001325,2]
[396525510,1765036233048,-502.30614635,0.0001325,2]
[396525512,1765036233057,-502.30614635,0.0001325,2]
[396525514,1765036233066,-502.30614635,0.0001325,2]
[396525516,1765036233077,-502.30614635,0.0001325,2]
[396525518,1765036233088,-502.30614635,0.0001325,2]
[396525520,1765036233097,-502.30614635,0.0001325,2]
[396525522,1765036233107,-523.25101354,0.0001325,2]
[396525524,1765036233117,-502.30614635,0.0001325,2]
[396525526,1765036233126,-502.30614635,0.0001325,2]
[396525528,1765036233136,-502.30614635,0.0001325,2]
[396525530,1765036233146,-502.30614635,0.0001325,2]
[396525532,1765036233155,-502.30614635,0.0001325,2]
[396525534,1765036233164,-502.30614635,0.0001325,2]
[396525536,1765036233176,-502.30614635,0.0001325,2]
[396525538,1765036233185,-500.0,0.0001325,2]
[396525540,1765036233194,-500.0,0.0001325,2]
[396525542,1765036233204,-500.0,0.0001325,2]
[396525544,1765036233213,-500.0,0.0001325,2]
[396525546,1765036233222,-500.0,0.0001325,2]
[396525548,1765036233231,-500.0,0.0001325,2]
[396525550,1765036233240,-500.0,0.0001325,2]
[396525552,1765036233252,-500.0,0.0001325,2]
[396525554,1765036233261,-500.0,0.0001325,2]
[396525556,1765036233271,-500.0,0.0001325,2]
[396525558,1765036233279,-500.0,0.0001325,2]
[396525559,1765036233288,-500.0,0.0001325,2]
[396525561,1765036233298,-500.0,0.0001325,2]
[396525563,1765036233307,-500.0,0.0001325,2]
[396525564,1765036233316,-500.0,0.0001325,2]
[396525565,1765036233326,-329.56204922,0.0001325,2]
[396525566,1765036233336,-500.0,0.0001325,2]
[396525567,1765036233346,-500.0,0.0001325,2]
[396525568,1765036233355,-500.0,0.0001325,2]
[396525569,1765036233365,-500.0,0.0001325,2]
[396525570,1765036233375,-500.0,0.0001325,2]
[396525571,1765036233384,-500.0,0.0001325,2]
[396525572,1765036233394,-500.0,0.0001325,2]
[396525573,1765036233404,-500.0,0.0001325,2]
[396525574,1765036233413,-500.0,0.0001325,2]
[396525575,1765036233422,-500.0,0.0001325,2]
[396525576,1765036233432,-227.65206831,0.0001325,2]
[396525577,1765036233442,-500.0,0.0001325,2]
[396525578,1765036233450,-500.0,0.0001325,2]
[396525579,1765036233461,-500.0,0.0001325,2]
[396525580,1765036233471,-500.0,0.0001325,2]
[396525581,1765036233480,-500.0,0.0001325,2]
[396525582,1765036233492,-500.0,0.0001325,2]
[396525583,1765036233502,-500.0,0.0001325,2]
[396525584,1765036233518,-500.0,0.0001325,2]
[396525585,1765036233527,-1239.31,0.0001325,2]
[396525586,1765036233538,-34939.95259394,0.00013251,2]
[396525587,1765036233551,-2223.61727678,0.00013251,2]
[396525588,1765036235301,-233.79357693,0.00013113,2]
[396525589,1765036235310,-9766.21642307,0.00013251,2]
[396525590,1765036235559,-10000.01,0.00013251,2]
[396525591,1765036236403,-10000.01,0.00013251,2]
[396525597,1765036238115,-1399.95,0.00013251,2]
[396525598,1765036238168,-400255.55034196,0.00013251,2]
[396525599,1765036238182,-507.96196028,0.00013251,2]
[396525600,1765036238224,-1075.08250832,0.00013251,2]
[396525601,1765036238236,-3306.37281369,0.00013251,2]
[396525607,1765036240338,-2993.80498,0.00013158,2]
[396525608,1765036240350,-1339.0389684,0.00013158,2]
[396525609,1765036240362,-9211.06829176,0.00013158,2]
[396525610,1765036240371,-214674.46373653,0.00013251,2]
[396525611,1765036240381,-258.11790004,0.00013258,2]
[396525612,1765036240390,-67318.8845,0.00013258,2]
[396525613,1765036240399,-1262.7863,0.00013258,2]
[396525614,1765036240408,-500.0,0.00013342,2]
[396525615,1765036240417,-1000.0,0.00013357,2]
[396525616,1765036240426,-5120.271,0.00013358,2]
[396525617,1765036240435,-157.243,0.00013358,2]
[396525618,1765036240445,-1358.19,0.00013358,2]
[396525619,1765036240454,-414.61,0.00013358,2]
[396525620,1765036240464,-9999.99,0.00013358,2]
[396525621,1765036240473,-9999.99,0.00013358,2]
[396525622,1765036240482,-150.99,0.00013358,2]
[396525623,1765036240491,-9999.99,0.00013358,2]
[396525624,1765036240501,-9999.99,0.00013358,2]
[396525625,1765036240511,-150.99,0.00013358,2]
[396525626,1765036240520,-6516.05,0.00013358,2]
[396525627,1765036240529,-2705.36,0.00013358,2]
[396525628,1765036240539,-4411.4,0.00013358,2]
[396525629,1765036240548,-499.99,0.00013358,2]
[396525630,1765036240557,-5147.1,0.00013358,2]
[396525631,1765036240567,-999.99,0.00013358,2]
[396525632,1765036240576,-15559.88,0.00013358,2]
[396525633,1765036240586,-299.99,0.00013358,2]
[396525634,1765036240595,-200.0,0.00013358,2]
[396525635,1765036240604,-500.0,0.0001337,2]
[396525636,1765036240614,-150.0,0.0001337,2]
[396525637,1765036240623,-150.0,0.0001337,2]
[396525638,1765036240632,-150.0,0.0001337,2]
[396525639,1765036240641,-150.0,0.0001337,2]
[396525640,1765036240650,-449.0,0.0001337,2]
[396525641,1765036240660,-150.0,0.0001337,2]
[396525642,1765036240670,-150.0,0.0001337,2]
[396525643,1765036240679,-500.0,0.0001337,2]
[396525644,1765036240688,-500.0,0.0001337,2]
[396525645,1765036240698,-150.0,0.0001337,2]
[396525646,1765036240712,-150.0,0.0001337,2]
[396525647,1765036240721,-500.0,0.0001337,2]
[396525648,1765036240730,-500.0,0.0001337,2]
[396525649,1765036240739,-159.67119842,0.0001337,2]
[396525650,1765036240748,-152.01489558,0.0001337,2]
[396525651,1765036240757,-500.0,0.0001337,2]
[396525652,1765036240767,-500.0,0.0001337,2]
[396525653,1765036240776,-150.0,0.0001337,2]
[396525654,1765036240785,-500.0,0.0001337,2]
[396525655,1765036240795,-500.0,0.0001337,2]
[396525656,1765036240804,-150.0,0.0001337,2]
[396525657,1765036240814,-150.0,0.0001337,2]
[396525658,1765036240824,-150.0,0.0001337,2]
[396525659,1765036240833,-150.0,0.0001337,2]
[396525660,1765036240842,-150.0,0.0001337,2]
[396525661,1765036240851,-150.0,0.0001337,2]
[396525662,1765036240860,-150.0,0.0001337,2]
[396525663,1765036240870,-500.0,0.00013378,2]
[396525664,1765036240879,-150.0,0.00013378,2]
[396525665,1765036240888,-500.0,0.00013378,2]
[396525666,1765036240897,-150.0,0.00013378,2]
[396525667,1765036240906,-150.0,0.00013378,2]
[396525668,1765036240918,-200.0,0.00013392,2]
[396525669,1765036240927,-500.0,0.00013397,2]
[396525670,1765036240936,-1000.0,0.00013402,2]
[396525671,1765036240945,-150.0,0.00013451,2]
[396525672,1765036240954,-152.59077503,0.00013451,2]
[396525673,1765036240963,-500.0,0.00013451,2]
[396525674,1765036240972,-150.0,0.00013451,2]
[396525675,1765036240981,-150.0,0.00013451,2]
[396525676,1765036240990,-150.0,0.00013451,2]
[396525677,1765036240999,-150.0,0.00013451,2]
[396525678,1765036241009,-256.28651657,0.00013451,2]
[396525679,1765036241019,-235.80169103,0.00013459,2]
[396525680,1765036241028,-356.81993342,0.00013459,2]
[396525681,1765036241037,-213.57,0.00013476,2]
[396525682,1765036241047,-1000.0,0.000135,2]
[396525683,1765036241056,-1000.0,0.00013501,3]
[396525684,1765036241065,-500.0,0.00013507,2]
[396525685,1765036241074,-500.0,0.00013507,2]
[396525686,1765036241083,-150.0,0.00013507,2]
[396525687,1765036241093,-449.0,0.00013507,2]
[396525688,1765036241102,-500.0,0.00013507,2]
[396525689,1765036241111,-500.0,0.00013507,2]
[396525690,1765036241120,-500.0,0.00013507,2]
[396525691,1765036241129,-500.0,0.00013507,2]
[396525692,1765036241139,-150.0,0.00013507,2]
[396525693,1765036241148,-500.0,0.00013507,2]
[396525694,1765036241157,-500.0,0.00013507,2]
[396525695,1765036241166,-160.52723624,0.00013507,2]
[396525696,1765036241178,-150.0,0.00013507,2]
[396525698,1765036241187,-161.99230191,0.00013507,2]
[396525700,1765036241197,-150.0,0.00013507,2]
[396525702,1765036241206,-150.0,0.00013507,2]
[396525703,1765036241215,-150.0,0.00013507,2]
[396525704,1765036241224,-624.0,0.00013515,2]
[396525706,1765036241234,-150.0,0.00013515,2]
[396525708,1765036241242,-500.0,0.00013515,2]
[396525709,1765036241253,-150.0,0.00013515,2]
[396525711,1765036241262,-212.0,0.00013519,2]
[396525712,1765036241272,-240.0,0.00013519,2]
[396525713,1765036241281,-1239.31,0.00013524,2]
[396525714,1765036241290,-200.0,0.00013526,2]
[396525715,1765036241299,-289.0,0.00013528,2]
[396525716,1765036241308,-153.0,0.00013528,2]
[396525717,1765036241318,-14375.54396746,0.00013574,2]
[396525718,1765036241327,-200.0,0.00013588,2]
[396525719,1765036241336,-500.0,0.00013588,2]
[396525720,1765036241345,-200.0,0.00013588,2]
[396525721,1765036241355,-200.0,0.00013588,2]
[396525722,1765036241364,-150.0,0.00013588,2]
[396525723,1765036241374,-150.0,0.00013588,2]
[396525724,1765036241383,-1000.0,0.00013602,2]
[396525725,1765036241392,-1000.0,0.00013602,2]
[396525726,1765036241403,-1000.0,0.00013602,2]
[396525727,1765036241413,-1000.0,0.00013602,2]
[396525728,1765036241424,-1000.0,0.00013602,2]